fUSD/lending_fUSD_20240530
["ID","MTS","AMOUNT","RATE_DAILY","PERIOD"]
[328193284,1717035038573,-802.19819903,0.00017943,2]
[328193285,1717035038585,-440.8317,0.00017943,2]
[328193286,1717035038596,-271.67460744,0.00017943,2]
[328193287,1717035038606,-172.50073,0.00017943,2]
[328193288,1717035038616,-6022.547331,0.00017943,2]
[328193289,1717035038626,-159.162397,0.00017943,2]
[328193291,1717035038636,-1000.0,0.00018,2]
[328193294,1717035038646,-697.22,0.00018002,2]
[328193297,1717035038667,-1885.53937455,0.00018162,2]
[328193299,1717035038681,-4242.20178645,0.00018162,2]
[328193301,1717035038693,-292.980173,0.00018162,2]
[328193303,1717035038703,-4154.698206,0.00018162,2]
[328193305,1717035038713,-175.637912,0.00018162,2]
[328193307,1717035038723,-172.50073,0.00018162,2]
[328193308,1717035038734,-6022.547331,0.00018162,2]
[328193309,1717035038744,-159.162397,0.00018162,2]
[328193310,1717035038755,-6127.741161,0.00018381,2]
[328193311,1717035038765,-292.980173,0.00018381,2]
[328193312,1717035038775,-4154.698206,0.00018381,2]
[328193313,1717035038784,-175.637912,0.00018381,2]
[328193314,1717035038794,-172.50073,0.00018381,2]
[328193315,1717035038804,-6022.547331,0.00018381,2]
[328193316,1717035038814,-159.162397,0.00018381,2]
[328193317,1717035038824,-3886.30484841,0.000192,2]
[328193319,1717035038834,-250.0,0.00019801,2]
[328193321,1717035038844,-15301.04,0.00019901,2]
[328193323,1717035038853,-196.17,0.00019938,2]
[328193325,1717035038863,-167.13,0.00019958,2]
[328193327,1717035038873,-200.0,0.00019965,2]
[328193329,1717035038883,-250.0,0.00020198,2]
[328193331,1717035038893,-243.67,0.00020245,2]
[328193333,1717035038903,-697.22,0.00020266,2]
[328193335,1717035038913,-195.985653,0.00020424,2]
[328193338,1717035038924,-186.09,0.00020447,2]
[328193340,1717035038933,-195.985653,0.00020679,2]
[328193342,1717035038944,-196.17,0.00020934,2]
[328193344,1717035038954,-195.985653,0.00020935,2]
[328193346,1717035038963,-1250.0,0.00021,2]
[328193348,1717035038974,-195.985653,0.0002119,2]
[328193350,1717035038983,-195.985653,0.00021445,2]
[328193352,1717035038994,-1000.0,0.00021707,2]
[328193354,1717035039003,-395.42,0.00021918,2]
[328193356,1717035039013,-2000.0,0.00021918,2]
[328193358,1717035039024,-219.84,0.00021918,2]
[328193360,1717035039034,-250.0,0.00021918,2]
[328193362,1717035039044,-196.17,0.00021931,2]
[328193364,1717035039054,-198.94949549,0.00021999,2]
[328193366,1717035039065,-30000.0,0.00022,2]
[328193368,1717035039075,-697.22,0.0002253,2]
[328193370,1717035039086,-167.13,0.00022698,2]
[328193372,1717035039096,-196.17,0.00022928,2]
[328193374,1717035039106,-1300.0,0.00023,2]
[328193376,1717035039116,-506.5019,0.000239,2]
[328193379,1717035039126,-500.0,0.000239,2]
[328193381,1717035039136,-936.0759,0.000239,2]
[328193383,1717035039147,-196.17,0.00023925,2]
[328193385,1717035039157,-433.74027885,0.00024,2]
[328193387,1717035039168,-180.0,0.0002423,2]
[328193389,1717035039178,-1000.0,0.0002442,2]
[328193391,1717035039198,-1000.0,0.00024698,2]
[328193393,1717035039210,-2500.0,0.00024698,2]
[328193395,1717035039220,-154.67183117,0.00024752,2]
[328193397,1717035039232,-697.22,0.00024794,2]
[328193399,1717035039243,-29107.00103563,0.00024798,2]
[328193401,1717035039256,-18377.23696437,0.00024798,2]
[328193403,1717035039266,-3192.11740114,0.00024799,2]
[328193406,1717035039280,-3192.11740107,0.00024799,2]
[328193408,1717035039290,-312.40876802,0.00024873,2]
[328193410,1717035039301,-550.32155639,0.0002488,2]
[328193412,1717035039317,-3192.11740107,0.00024954,2]
[328193414,1717035039327,-156.44734327,0.00024996,2]
[328193416,1717035039336,-792.66258349,0.00024997,2]
[328193418,1717035039346,-156.08628627,0.00024997,2]
[328193420,1717035039356,-377.84853699,0.00024997,2]
[328193422,1717035039367,-18719.24765424,0.00024998,2]
[328193425,1717035039377,-500.0,0.00024998,2]
[328193427,1717035039386,-928.27069725,0.00025,2]
[328193429,1717035039396,-30000.0,0.00025,3]
[328193431,1717035039406,-155.0,0.00025,2]
[328193433,1717035039416,-155.0,0.00025,2]
[328193435,1717035039425,-1350.0,0.00025,2]
[328193437,1717035039435,-153.8620977,0.00025034,2]
[328193439,1717035039445,-186.32649837,0.00025041,2]
[328193441,1717035039454,-158.90813741,0.00025134,2]
[328193443,1717035039464,-186.32649837,0.0002514,2]
[328193445,1717035039474,-152.65899469,0.00025288,2]
[328193447,1717035039484,-186.32649837,0.00025373,2]
[328193449,1717035039495,-3068.08573054,0.00025384,2]
[328193451,1717035039505,-152.65899469,0.000254,2]
[328193453,1717035039514,-634.0,0.000254,3]
[328193455,1717035039524,-167.13,0.00025437,2]
[328193457,1717035039534,-153.389517,0.00025446,2]
[328193459,1717035039544,-186.32649837,0.00025499,2]
[328193462,1717035039554,-2111.0,0.000255,3]
[328193464,1717035039564,-153.9788688,0.0002562,2]
[328193466,1717035039573,-152.65899469,0.00025642,2]
[328193468,1717035039583,-154.41599649,0.0002585,2]
[328193470,1717035039592,-163.36,0.0002589,2]
[328193472,1717035039602,-153.9788688,0.00025927,2]
[328193474,1717035039611,-2566.078,0.00025963,2]
[328193476,1717035039621,-186.32649837,0.00025986,2]
[328193478,1717035039631,-153.9788688,0.0002609,2]
[328193480,1717035039640,-153.8620977,0.00026105,2]
[328193482,1717035039649,-158.90813741,0.00026113,2]
[328193484,1717035039659,-158.90813741,0.0002612,2]
[328193486,1717035039669,-3192.11740107,0.00026132,2]
[328193488,1717035039678,-154.05146847,0.00026142,2]
[328193507,1717035039841,-154.41599649,0.00026159,2]
[328193509,1717035039862,-160.42476078,0.00026166,2]
[328193510,1717035039872,-153.8620977,0.00026251,2]
[328193511,1717035039882,-161.61140346,0.00026277,2]
[328193512,1717035039892,-158.31933753,0.0002635,2]
[328193513,1717035039901,-152.65899469,0.00026379,2]
[328193514,1717035039910,-152.65899469,0.00026431,2]
[328193515,1717035039920,-152.65899469,0.0002665,2]
[328193516,1717035039930,-158.90813741,0.00026726,2]
[328193517,1717035039939,-154.41599649,0.00026758,2]
[328193518,1717035039948,-186.32649837,0.00026806,2]
[328193519,1717035039958,-186.32649837,0.00026866,2]
[328193520,1717035039968,-158.90813741,0.00026905,2]
[328193521,1717035039977,-186.09,0.00026921,2]
[328193522,1717035039987,-155.06875097,0.00026965,2]
[328193523,1717035039997,-4020.65057636,0.00027,2]
[328193524,1717035040006,-1400.0,0.00027,2]
[328193525,1717035040015,-300.0,0.00027,2]
[328193526,1717035040025,-300.0,0.00027,2]
[328193527,1717035040034,-150.0,0.00027,2]
[328193528,1717035040044,-186.32649837,0.00027015,2]
[328193529,1717035040053,-697.22,0.00027058,2]
[328193530,1717035040064,-186.32649837,0.00027081,2]
[328193531,1717035040073,-186.32649837,0.00027092,2]
[328193532,1717035040082,-1000.0,0.00027133,2]
[328193533,1717035040091,-155.06875097,0.00027229,2]
[328193534,1717035040100,-3192.11740107,0.0002731,2]
[328193535,1717035040110,-186.32649837,0.00027327,2]
[328193536,1717035040119,-156.28461386,0.00027365,2]
[328193537,1717035040128,-809.28052859,0.0002739,2]
[328193538,1717035040138,-300.0,0.00027397,2]
[328193539,1717035040147,-626.2,0.00027397,10]
[328193540,1717035040157,-158.31933753,0.00027477,2]
[328193541,1717035040166,-300.0,0.00027534,2]
[328193542,1717035040176,-424.0,0.000276,5]
[328193543,1717035040188,-326.87470487,0.00027645,2]
[328193544,1717035040199,-153.389517,0.0002765,2]
[328193545,1717035040208,-300.0,0.00027671,2]
[328193546,1717035040217,-186.32649837,0.0002771,2]
[328193547,1717035040227,-150.0,0.00027723,2]
[328193548,1717035040237,-158.90813741,0.00027736,2]
[328193549,1717035040246,-1019.564,0.00027745,2]
[328193550,1717035040255,-449.521,0.00027745,2]
[328193551,1717035040265,-1654.647,0.00027745,2]
[328193552,1717035040276,-472.674,0.00027745,2]
[328193553,1717035040286,-1272.88,0.00027745,2]
[328193554,1717035040296,-620.556,0.00027745,2]
[328193555,1717035040305,-1232.246,0.00027745,2]
[328193556,1717035040315,-219.167,0.00027745,2]
[328193557,1717035040324,-813.047,0.00027745,2]
[328193558,1717035040333,-192.483,0.00027745,2]
[328193559,1717035040342,-2411.708,0.00027745,2]
[328193560,1717035040351,-447.752,0.00027745,2]
[328193561,1717035040361,-1144.78,0.00027745,2]
[328193562,1717035040370,-1660.241,0.00027745,2]
[328193563,1717035040379,-226.0,0.00027745,2]
[328193564,1717035040388,-157.856,0.00027745,2]
[328193565,1717035040397,-552.02,0.00027745,2]
[328193566,1717035040406,-3184.819,0.00027745,2]
[328193567,1717035040416,-1475.793,0.00027745,2]
[328193568,1717035040425,-5800.688,0.00027745,2]
[328193569,1717035040435,-301.206,0.00027745,2]
[328193570,1717035040444,-5143.0,0.00027745,2]
[328193571,1717035040453,-37944.0,0.00027745,2]
[328193572,1717035040462,-154.41599649,0.00027794,2]
[328193573,1717035040472,-300.0,0.00027808,2]
[328193574,1717035040481,-152.65899469,0.00027846,2]
[328193575,1717035040491,-165.40837734,0.00027898,2]
[328193576,1717035040501,-712.01978523,0.000279,2]
[328193577,1717035040510,-166.66666666,0.00027904,2]
[328193578,1717035040519,-300.0,0.00027945,2]
[328193579,1717035040528,-155.30406595,0.00027987,2]
[328193580,1717035040537,-749.13400151,0.00027987,2]
[328193581,1717035040546,-158.31933753,0.00028077,2]
[328193582,1717035040555,-300.0,0.00028082,2]
[328193583,1717035040565,-158.31933753,0.00028087,2]
[328193584,1717035040574,-158.90813741,0.00028177,2]
[328193585,1717035040583,-158.31933753,0.00028192,2]
[328193586,1717035040592,-369.0,0.00028215,2]
[328193587,1717035040602,-369.0,0.00028215,2]
[328193588,1717035040611,-300.0,0.00028219,2]
[328193589,1717035040621,-215.203712,0.00028285,2]
[328193590,1717035040630,-153.66663094,0.00028345,2]
[328193591,1717035040639,-186.32649837,0.00028396,2]
[328193592,1717035040649,-153.9788688,0.0002845,2]
[328193593,1717035040659,-3192.11740107,0.00028488,2]
[328193594,1717035040670,-153.8620977,0.00028551,2]
[328193595,1717035040679,-169.49075499,0.00028577,2]
[328193596,1717035040688,-12991.54036838,0.00028577,2]
[328193597,1717035040698,-8170.96231879,0.00028578,2]
[328193598,1717035040708,-155.2909143,0.00028578,2]
[328193599,1717035040717,-153.8620977,0.00028653,2]
[328193600,1717035040726,-153.66663094,0.00028668,2]
[328193601,1717035040736,-326.87470484,0.00028756,2]
[328193602,1717035040745,-152.65899469,0.00028762,2]
[328193603,1717035040754,-153.8620977,0.00028807,2]
[328193604,1717035040764,-186.32649837,0.00028825,2]
[328193605,1717035040774,-153.8620977,0.00028826,2]
[328193606,1717035040784,-85.56158805,0.00028957,2]
[328193607,1717035040844,-100.76491032,0.00028957,2]
[328193608,1717035040854,-500.0,0.00028972,2]
[328193609,1717035040863,-500.0,0.0002898,2]
[328193610,1717035040873,-500.0,0.00028989,2]
[328193611,1717035040882,-500.0,0.00028998,2]
[328193612,1717035040891,-1094.45116571,0.00029,2]
[328193613,1717035040903,-355.54883429,0.00029,2]
[328193614,1717035040912,-152.65899469,0.00029092,2]
[328193615,1717035040921,-158.31933753,0.00029284,2]
[328193616,1717035040931,-697.22,0.00029322,2]
[328193617,1717035040941,-153.52335604,0.00029337,2]
[328193618,1717035040951,-156.73,0.00029349,2]
[328193619,1717035040960,-153.9788688,0.0002937,2]
[328193620,1717035040970,-158.31933753,0.00029396,2]
[328193621,1717035040979,-186.32649837,0.00029443,2]
[328193623,1717035040988,-226.23265054,0.000295,3]
[328193625,1717035040997,-150.0,0.00029503,2]
[328193627,1717035041007,-158.31933753,0.0002951,2]
[328193630,1717035041016,-150.0,0.00029651,2]
[328193633,1717035041025,-3192.11740107,0.00029666,2]
[328193635,1717035041034,-153.20009871,0.00029699,3]
[328193637,1717035041043,-155.06875097,0.00029737,2]
[328193639,1717035041052,-150.0,0.00029789,2]
[328193641,1717035041062,-1000.0,0.00029847,2]
[328193643,1717035041071,-152.65899469,0.00029853,2]
[328193645,1717035041080,-326.87470484,0.00029867,2]
[328193647,1717035041089,-186.32649837,0.00029886,2]
[328193649,1717035041099,-186.32649837,0.00029893,2]
[328193651,1717035041108,-111.24983766,0.00029951,2]
[328193653,1717035042404,-1068.312,0.00027745,2]
[328193654,1717035042415,-150.0,0.00029466,2]
[328193655,1717035042426,-150.0,0.00029665,2]
[328193656,1717035042436,-23.97897022,0.00029951,2]
[328193657,1717035042447,-51.09769049,0.00029951,2]
[328193658,1717035042456,-150.0,0.00029954,2]
[328193659,1717035042468,-1052.15921688,0.0003,4]
[328193660,1717035042477,-200.0,0.0003,2]
[328193661,1717035042486,-150.0,0.00030057,2]
[328193662,1717035042496,-150.0,0.00030092,2]
[328193663,1717035042507,-407.31445881,0.000301,2]
[328193664,1717035042517,-200.0,0.00030137,2]
[328193665,1717035042529,-2296.11993855,0.00030156,2]
[328193667,1717035043435,-150.0,0.00029785,2]
[328193668,1717035043444,-7451.23405082,0.00030156,2]
[328193669,1717035043454,-186.32649837,0.00030186,7]
[328193670,1717035043463,-199.09237024,0.000302,2]
[328193671,1717035043474,-281.07575007,0.000302,2]
[328193672,1717035043485,-268.45463421,0.000302,2]
[328193673,1717035043499,-260.37724548,0.000302,2]
[328193674,1717035043509,-200.0,0.00030213,120]
[328193675,1717035043518,-150.0,0.00030227,2]
[328193676,1717035043527,-147.07334035,0.00030236,7]
[328193677,1717035043621,-11.24599718,0.00030236,7]
[328193678,1717035043631,-150.0,0.0003025,2]
[328193679,1717035043640,-158.90813741,0.00030251,7]
[328193680,1717035043649,-153.8620977,0.00030373,7]
[328193681,1717035043659,-150.0,0.00030439,2]
[328193682,1717035043668,-152.65899469,0.00030446,7]
[328193683,1717035043677,-150.0,0.0003046,2]
[328193684,1717035043687,-310.60803523,0.00030476,4]
[328193685,1717035043696,-150.0,0.00030484,2]
[328193686,1717035043706,-150.0,0.00030486,2]
[328193687,1717035043716,-157.47163659,0.00030502,7]
[328193688,1717035043725,-150.0,0.00030502,2]
[328193689,1717035043735,-150.0,0.00030523,2]
[328193690,1717035043744,-154.05146847,0.00030555,7]
[328193691,1717035043754,-154.05146847,0.0003057,7]
[328193692,1717035043764,-153.9788688,0.00030593,7]
[328193693,1717035043773,-150.0,0.00030608,2]
[328193694,1717035043783,-186.32649837,0.00030615,7]
[328193695,1717035043793,-186.32649837,0.00030617,7]
[328193696,1717035043802,-155.06875097,0.0003068,7]
[328193697,1717035043814,-357.0,0.00030745,2]
[328193698,1717035043823,-4989.081,0.00030745,2]
[328193699,1717035043832,-150.0,0.0003076,2]
[328193700,1717035043841,-186.32649837,0.00030777,7]
[328193701,1717035043851,-150.0,0.00030789,2]
[328193702,1717035043860,-150.0,0.00030789,2]
[328193704,1717035043870,-150.0,0.00030789,2]
[328193705,1717035043879,-150.0,0.00030789,2]
[328193706,1717035043889,-150.0,0.00030789,2]
[328193707,1717035043898,-150.0,0.00030789,2]
[328193708,1717035043907,-150.0,0.00030789,2]
[328193709,1717035043916,-150.0,0.00030789,2]
[328193710,1717035043926,-150.0,0.00030789,2]
[328193711,1717035043935,-150.0,0.00030789,2]
[328193712,1717035043944,-150.0,0.00030789,2]
[328193713,1717035043953,-150.0,0.00030789,2]
[328193714,1717035043963,-196.99999,0.00030789,2]
[328193715,1717035043972,-3192.11740107,0.00030844,10]
[328193716,1717035043982,-500.0,0.00030851,2]
[328193717,1717035043992,-200.0,0.00030851,2]
[328193718,1717035044001,-154.05146847,0.00030879,7]
[328193719,1717035044011,-200.3460297,0.00030945,2]
[328193720,1717035044020,-326.87470484,0.00030978,2]
[328193721,1717035044030,-155.06875098,0.0003098,7]
[328193722,1717035044039,-150.0,0.00030989,2]
[328193723,1717035044049,-7500.0,0.0003099,2]
[328193724,1717035044063,-648.33736052,0.00030998,4]
[328193725,1717035044072,-327.36206072,0.00030998,4]
[328193726,1717035044081,-277.0704,0.00030999,2]
[328193727,1717035044090,-328.38546986,0.00030999,4]
[328193728,1717035044099,-2108.5386053,0.00030999,4]
[328193729,1717035044108,-164.00574742,0.00030999,4]
[328193730,1717035044117,-191.26228539,0.00030999,2]
[328193731,1717035044126,-222.44938413,0.00030999,2]
[328193732,1717035044135,-6550.81370068,0.00030999,2]
[328193733,1717035044144,-210.36703668,0.00030999,2]
[328193734,1717035044153,-175.78576892,0.00030999,2]
[328193735,1717035044162,-1000.0,0.00031,2]
[328193736,1717035044171,-38353.61,0.00031,8]
[328193737,1717035044180,-521.55767432,0.00031,4]
[328193738,1717035044194,-1500.0,0.00031,2]
[328193739,1717035044204,-202.29406069,0.00031,2]
[328193740,1717035044213,-185.32554507,0.00031,2]
[328193741,1717035044222,-4616.46661514,0.00031067,4]
[328193742,1717035044233,-6132.0,0.0003108,6]
[328193743,1717035044243,-22864.2424637,0.00031085,2]
[328193744,1717035044252,-2280.5827956,0.00031085,2]
[328193745,1717035044261,-3266.320352,0.00031085,2]
[328193746,1717035044273,-1419.607387,0.00031087,2]
[328193747,1717035044282,-639.8777399,0.00031087,2]
[328193748,1717035044292,-11328.9930505,0.00031087,2]
[328193749,1717035044301,-151.59,0.00031089,2]
[328193750,1717035044313,-151.59,0.0003109,2]
[328193751,1717035044321,-151.59,0.0003109,2]
[328193752,1717035044331,-151.59,0.0003109,2]
[328193753,1717035044340,-151.59,0.0003109,2]
[328193754,1717035044349,-151.59,0.0003109,2]
[328193755,1717035044358,-151.59,0.0003109,2]
[328193756,1717035044368,-151.59,0.0003109,2]
[328193757,1717035044379,-151.59,0.0003109,2]
[328193758,1717035044388,-151.59,0.0003109,2]
[328193759,1717035044397,-151.59,0.0003109,2]
[328193760,1717035044406,-151.59,0.0003109,2]
[328193761,1717035044415,-151.59,0.0003109,2]
[328193762,1717035044425,-155.2477378,0.00031095,4]
[328193763,1717035044436,-222.16207069,0.00031095,4]
[328193764,1717035044546,-766.45996685,0.00031096,4]
[328193765,1717035044556,-5000.0,0.00031096,5]
[328193766,1717035044567,-2353.52728983,0.00031097,4]
[328193767,1717035044576,-449.30147889,0.00031097,4]
[328193768,1717035044585,-2258.96890236,0.00031097,4]
[328193769,1717035044595,-400.06856302,0.00031097,4]
[328193770,1717035044604,-2014.97454048,0.00031097,4]
[328193771,1717035044613,-1187.14562735,0.00031097,4]
[328193772,1717035044622,-1113.48946789,0.00031097,4]
[328193773,1717035044632,-4273.20848709,0.00031097,4]
[328193774,1717035044642,-13103.02528035,0.00031097,4]
[328193775,1717035044653,-1577.91907871,0.00031097,4]
[328193776,1717035044663,-1245.81222272,0.00031097,4]
[328193777,1717035044673,-633.90730226,0.00031097,4]
[328193778,1717035044683,-155.77422002,0.00031097,8]
[328193779,1717035044695,-259.49937977,0.00031097,4]
[328193780,1717035044704,-472.91332031,0.00031097,4]
[328193781,1717035044715,-2888.86464277,0.00031097,4]
[328193782,1717035044725,-1485.10005136,0.00031097,4]
[328193783,1717035044735,-412.3990354,0.00031097,2]
[328193784,1717035044745,-155.51849369,0.00031098,4]
[328193785,1717035044756,-321.61016899,0.00031098,4]
[328193786,1717035044766,-155.36046458,0.00031098,2]
[328193787,1717035044776,-252.14793413,0.00031098,4]
[328193788,1717035044785,-30966.26021666,0.00031099,11]
[328193789,1717035044796,-5883.27384355,0.00031099,2]
[328193790,1717035044807,-2957.44588065,0.00031099,4]
[328193791,1717035044817,-464869.10759662,0.00031099,2]
[328193792,1717035044827,-184.71809428,0.00031099,2]
[328193793,1717035044836,-251093.83816813,0.000311,5]
[328193794,1717035045252,-409.2665,0.000311,5]
[328193795,1717035045267,-399.94065048,0.000311,5]
[328193796,1717035045278,-63767.67695323,0.000311,5]
[328193797,1717035045289,-1808.045685,0.000311,5]
[328193798,1717035046316,-334.0,0.00027519,5]
[328193800,1717035046325,-151.16645569,0.000311,5]
[328193801,1717035046337,-6908.2,0.000311,5]
[328193802,1717035046506,-193440.46061427,0.000311,5]
[328193803,1717035046518,-691.37793153,0.000311,5]
[328193804,1717035046530,-12991.54036838,0.000311,5]
[328193854,1717036231741,-337.62197281,0.0001386,2]
[328193855,1717036231751,-0.73802719,0.00013861,2]
[328193856,1717036231762,-1897.59023123,0.00013861,2]
[328193857,1717036231771,-1607.89134997,0.00013862,2]
[328193858,1717036231782,-933.49206678,0.00013862,2]
[328193859,1717036231961,-4985.64528639,0.00013862,2]
[328193860,1717036231970,-165.29677628,0.00013871,2]
[328193861,1717036231980,-156.32,0.00013973,2]
[328193862,1717036231989,-162.24,0.00013973,2]
[328193863,1717036231998,-151.56,0.00013973,2]
[328193864,1717036232008,-1802.7073459,0.00017259,2]
[328193865,1717036232017,-163.681499,0.00017505,2]
[328193866,1717036232026,-156.312709,0.00017505,2]
[328193867,1717036232035,-172.737953,0.00017505,2]
[328193868,1717036232044,-159.534245,0.00017505,2]
[328193869,1717036232054,-826.803298,0.00017505,2]
[328193870,1717036232063,-157.569706,0.00017505,2]
[328193871,1717036232074,-3255.36062144,0.00017534,2]
[328193872,1717036232086,-669.20417789,0.00017534,2]
[328193873,1717036232097,-793.76782112,0.00017534,2]
[328193874,1717036233554,-343.125,0.00017534,2]
[328193890,1717036237889,-2001.03237955,0.00017534,2]
[328193891,1717036237899,-826.803298,0.00017724,2]
[328193892,1717036237908,-150.99,0.00017724,2]
[328193893,1717036237919,-3829.79,0.00017808,2]
[328193894,1717036237928,-472.57,0.00017808,2]
[328193895,1717036237938,-499.99,0.00017808,2]
[328193896,1717036237947,-826.803298,0.00017943,2]
[328193897,1717036237957,-826.803298,0.00018162,2]
[328193898,1717036237966,-159.534245,0.00018381,2]
[328193899,1717036237976,-826.803298,0.00018381,2]
[328193900,1717036237985,-3886.30484841,0.000192,2]
[328193901,1717036237995,-158.73744901,0.0002,2]
[328193902,1717036238005,-176.060263,0.00020424,2]
[328193903,1717036238015,-1250.0,0.00021,2]
[328193904,1717036238024,-165.29677628,0.0002121,2]
[328193905,1717036238033,-171.42,0.00021918,2]
[328193906,1717036238043,-622.99,0.00022172,2]
[328193907,1717036238052,-1300.0,0.00023,2]
[328193908,1717036238062,-923.99,0.00023299,2]
[328193909,1717036238071,-250.0,0.00023325,2]
[328193910,1717036238082,-500.0,0.00023329,2]
[328193911,1717036238092,-525.74,0.00023335,2]
[328193912,1717036238101,-200.0,0.00023361,2]
[328193913,1717036238111,-405.68,0.00023421,2]
[328193914,1717036238120,-150.0,0.00023445,2]
[328193915,1717036238130,-250.0,0.00023507,2]
[328193916,1717036238139,-13040.84694771,0.00023641,2]
[328193917,1717036238151,-10700.675198,0.00023641,2]
[328193918,1717036238163,-148.47785429,0.00023641,2]
[328193919,1717036238172,-799.86,0.00024068,60]
[328193920,1717036238182,-183.2,0.00024175,2]
[328193921,1717036238192,-1357.17,0.00024175,2]
[328193922,1717036238202,-485.44,0.00024192,2]
[328193923,1717036238211,-485.44,0.00024258,2]
[328193924,1717036238221,-1452.58278071,0.00024308,2]
[328193925,1717036238233,-443.64721929,0.00024308,2]
[328193926,1717036238243,-485.44,0.00024325,2]
[328193927,1717036238252,-2770.7,0.00024332,2]
[328193928,1717036238262,-20133.846,0.00024332,2]
[328193929,1717036238272,-3636.13,0.00024368,2]
[328193930,1717036238282,-485.44,0.00024391,2]
[328193931,1717036238292,-622.99,0.00024436,2]
[328193932,1717036238301,-485.44,0.00024457,2]
[328193933,1717036238311,-485.44,0.00024524,2]
[328193934,1717036238320,-485.44,0.0002459,2]
[328193935,1717036238333,-485.44,0.00024657,2]
[328193936,1717036238342,-815.6143,0.00024698,2]
[328193937,1717036238353,-485.44,0.00024723,2]
[328193938,1717036238363,-485.44,0.00024789,2]
[328193939,1717036238374,-485.44,0.00024856,2]
[328193940,1717036238384,-156.28461386,0.00024865,2]
[328193941,1717036238395,-548.09302787,0.0002488,2]
[328193942,1717036238406,-485.44,0.00024922,2]
[328193943,1717036238416,-159.24244822,0.00024933,2]
[328193944,1717036238426,-153.66663094,0.00024939,2]
[328193945,1717036238436,-485.44,0.00024988,2]
[328193946,1717036238446,-153.66663094,0.00024999,2]
[328193947,1717036238456,-1350.0,0.00025,2]
[328193948,1717036238466,-155.0,0.00025,2]
[328193949,1717036238476,-155.0,0.00025,2]
[328193950,1717036238486,-485.44,0.00025055,2]
[328193951,1717036238496,-153.17750468,0.00025064,2]
[328193952,1717036238505,-250.0,0.00025065,2]
[328193953,1717036238515,-485.44,0.00025121,2]
[328193954,1717036238524,-153.05302976,0.00025122,2]
[328193955,1717036238534,-485.44,0.00025187,2]
[328193956,1717036238544,-187.49,0.00025196,2]
[328193957,1717036238554,-485.44,0.00025254,2]
[328193958,1717036238564,-485.44,0.0002532,2]
[328193959,1717036238576,-187.49,0.00025322,2]
[328193960,1717036238587,-643.04771701,0.00025385,2]
[328193961,1717036238597,-485.44,0.00025386,2]
[328193962,1717036238607,-485.44,0.00025453,2]
[328193963,1717036238616,-180.0,0.00025533,2]
[328193964,1717036238626,-153.66663094,0.00025561,2]
[328193965,1717036238636,-170.53377038,0.00025621,2]
[328193966,1717036238646,-153.05302976,0.00025635,2]
[328193967,1717036238656,-154.71089434,0.00025657,2]
[328193968,1717036238665,-153.05302976,0.00025718,2]
[328193969,1717036238675,-159.24244822,0.00025834,2]
[328193970,1717036238688,-1000.0,0.00025896,2]
[328193971,1717036238699,-158.31933754,0.00025919,2]
[328193972,1717036238709,-153.99505318,0.00025972,2]
[328193973,1717036238719,-153.05302976,0.00025979,2]
[328193974,1717036238729,-153.50997671,0.00025996,2]
[328193975,1717036238739,-153.99505318,0.00026094,2]
[328193976,1717036238749,-153.99505318,0.00026129,2]
[328193977,1717036238760,-153.99505318,0.00026314,2]
[328193978,1717036238771,-170.12,0.00026336,2]
[328193979,1717036238781,-158.31933754,0.00026453,2]
[328193980,1717036238791,-153.05302976,0.00026566,2]
[328193981,1717036238800,-622.99,0.000267,2]
[328193982,1717036238810,-153.66663094,0.00026799,2]
[328193983,1717036238820,-157.4716366,0.00026807,2]
[328193984,1717036238837,-153.99505318,0.00026944,2]